[Event "1st Serbian League 2022"]
[Site "Vrnjacka Banja"]
[Date "2022.09.23"]
[Round "4.24"]
[White "Omorjan, Dejan"]
[Black "Rajkovic, Mladen"]
[Result "1-0"]
[ECO "A16"]
[WhiteElo "2265"]
[BlackElo "2335"]
[Annotator "TA"]
[PlyCount "71"]
[EventDate "2022.09.20"]
[EventType "team-tourn"]
[EventCountry "SRB"]
[SourceTitle "playchess.com"]
[Source "ChessBase"]
[SourceQuality "1"]
[TimeControl "40/5400+30:1800+30"]

{[%evp 9,71,15,21,21,33,24,16,20,34,37,41,41,43,22,62,69,83,72,56,48,54,18,30,25,42,27,33,0,0,0,410,409,447,432,404,255,225,0,431,422,456,451,420,378,345,264,263,245,323,0,0,0,0,0,1893,1873,1724,1640,29980,29981,29989,29990,29994,29995]} 1. Nf3 {[%emt 0:00:03]} Nf6 {[%emt 0:04:08]} 2. c4 {[%emt 0:00:08]} g6 {[%emt 0:00:47]} 3. Nc3 {[%emt 0:00:09]} d5 {[%emt 0:00:07]} 4. cxd5 {[%emt 0:00:05]} Nxd5 {[%emt 0:00:06]} 5. h4 {[%emt 0:00:08][%cal Bh2h4,Bh4h5][%mdl 32]} Nxc3 {[%emt 0:07:01]} 6. bxc3 {[%emt 0:00:44] A16: English Opening: 1...Nf6 with ...d5.} Bg7 {[%emt 0:03:07]} 7. h5 {[%emt 0:04:28]} c5 {[%emt 0:07:21]} 8. Qa4+ {[%emt 0:01:50] The position is equal.} Qd7 {[%emt 0:11:06]} 9. Qc4 {[%emt 0:01:05]} b6 {[%emt 0:05:31]} 10. Ng5 {[%emt 0:01:19]} e6 {[%emt 0:01:01]} 11. Qh4 {[%emt 0:00:57][%cal Od2d4]} Qe7 {[%emt 0:07:53]} 12. hxg6 {[%emt 0:02:34]} hxg6 {[%emt 0:02:11]} 13. Qxh8+ {[%emt 0:00:15]} Bxh8 {[%emt 0:00:02]} 14. Rxh8+ {[%emt 0:00:10]} Kd7 {[%emt 0:00:11]} 15. d4 {[%emt 0:00:25][%mdl 1024] White has compensation.} Nc6 {[%emt 0:01:59]} 16. Rh7 {[%emt 0:04:06]} Nd8 {[%emt 0:00:25] [#]} (16... cxd4 $2 17. Rxf7 Qxf7 18. Nxf7 $18) 17. e4 $146 {[%emt 0:05:30] Nf3 is the strong threat.} ({Predecessor:} 17. Ne4 Bb7 18. Bg5 Qf8 19. Nf6+ Kc8 20. e4 a5 21. Rh3 Ba6 22. Bxa6+ Rxa6 23. e5 cxd4 {1-0 (47) Rallabandi,P (2501)-Rawlings,A (2321) ICCF email 2021}) 17... Kc7 {[%emt 0:13:25]} 18. a3 {[%emt 0:15:11]} Kb7 {[%emt 0:05:51]} 19. e5 {[%emt 0:05:57]} Bd7 $2 {[%emt 0:02:32][%mdl 8192]} (19... Rb8 $11 {and Black has nothing to worry.}) 20. Ne4 $18 {[%emt 0:04:44]} Kc7 {[%emt 0:06:33]} 21. Bg5 {[%emt 0:05:08]} Qf8 {[%emt 0:00:01]} 22. Bh6 {[%emt 0:06:56]} Qe7 {[%emt 0:00:08] [#]} 23. Bg5 $2 {[%emt 0:01:36]} (23. Nf6 $1 {Hoping for d5.} Nc6 24. Bg5) 23... Qf8 {[%emt 0:00:01]} 24. Bf6 {[%emt 0:01:12]} Nb7 {[%emt 0:00:02]} 25. Ng5 {[%emt 0:01:52]} Qc8 {[%emt 0:00:42]} 26. Rxf7 {[%emt 0:20:43]} cxd4 {[%emt 0:00:48]} 27. cxd4 {[%emt 0:02:59] aiming for Rc1+.} Kb8 {[%emt 0:00:01]} 28. Ne4 {[%emt 0:01:13] Inhibits Qc3+. Black must now prevent Ba6.} Qc2 {[%emt 0:01:48]} 29. Rxd7 $2 {[%emt 0:04:56]} ({White has to play} 29. f3 $18 Be8 30. Rf8) 29... Qxe4+ $11 {[%emt 0:05:23]} 30. Kd2 {[%emt 0:03:29] Strongly threatening Ba6.} Na5 {[%emt 0:00:36]} 31. Bb5 {[%emt 0:01:01] And now Rh1 would win. Dancing on a razor blade.} a6 $2 {[%emt 0:03:28][%mdl 8192] [#]} (31... Nb3+ $11 32. Kc3 Nxa1 33. Rd8+ Kc7 34. Rd7+ Kb8 35. Rd8+ Kc7 36. Rd7+ Kc8 37. Rd8+ Kc7) 32. Rh1 $1 $18 {[%emt 0:00:50][%cal Rh1h8]} Nb7 {[%emt 0:01:56]} 33. Be2 {[%emt 0:02:10] Threatening mate with Bf3. A strong pair of Bishops.} Kc8 {[%emt 0:09:44]} 34. Rhh7 {[%emt 0:01:31] White mates.} Ra7 {[%emt 0:00:46]} 35. Bf3 {[%emt 0:00:25]} Qf4+ {[%emt 0:00:23]} 36. Kd1 {[%emt 0:00:47] Weighted Error Value: White=0.32/Black=0.38} 1-0

[Event "1st Serbian League 2022"]
[Site "Vrnjacka Banja"]
[Date "2022.09.23"]
[Round "4.25"]
[White "Tadic, Stefan"]
[Black "Demchenko, Anton"]
[Result "0-1"]
[ECO "B55"]
[WhiteElo "2318"]
[BlackElo "2645"]
[Annotator "TA"]
[PlyCount "56"]
[EventDate "2022.09.20"]
[EventType "team-tourn"]
[EventCountry "SRB"]
[SourceTitle "playchess.com"]
[Source "ChessBase"]
[SourceQuality "1"]
[TimeControl "40/5400+30:1800+30"]

{[%evp 17,56,0,-7,-43,-55,-55,-48,-86,-79,-102,-95,-90,-90,-74,-76,-133,-149,-141,-168,-162,-167,-180,-130,-179,-184,-232,-239,-237,-231,-364,-372,-363,-358,-384,-379,-400,-409,-408,-408,-391,-379]} 1. e4 {[%emt 0:00:21]} c5 {[%emt 0:00:04]} 2. Nf3 {[%emt 0:00:47]} d6 {[%emt 0:00:07]} 3. d4 {[%emt 0:00:50]} cxd4 {[%emt 0:00:08]} 4. Nxd4 {[%emt 0:01:04]} Nf6 {[%emt 0:00:42]} 5. f3 {[%emt 0:01:00]} e5 {[%emt 0:01:02]} 6. Nb3 {[%emt 0:00:44]} d5 {[%emt 0:05:29]} 7. Bg5 {[%emt 0:01:02]} Be6 {[%emt 0:00:12]} 8. exd5 {[%emt 0:11:40]} Qxd5 {[%emt 0:00:49]} 9. Nc3 {[%emt 0:11:27]} Bb4 {[%emt 0:01:43]} 10. Bxf6 {[%emt 0:01:43] B55: Sicilian: 2...d6 3 d4 cxd4 4 Nxd4 Nf6 5 f3.} Qxd1+ {[%emt 0:02:32]} 11. Rxd1 {[%emt 0:02:28][%csl Gf6][%cal Rd1d8]} gxf6 {[%emt 0:00:56]} 12. Bb5+ {[%emt 0:00:42] [#] Black is slightly better.} Ke7 $146 {[%emt 0:02:31]} ({Predecessor:} 12... Nd7 13. O-O Bxc3 14. bxc3 O-O-O 15. Bxd7+ Bxd7 16. f4 Be6 17. Rde1 Bc4 18. Rf3 Rhg8 19. fxe5 fxe5 {½-½ (45) Wagner,F (2323)-Arnold,M (1899) Nuremberg 2009}) 13. O-O {[%emt 0:03:51]} Bxc3 {[%emt 0:01:54]} 14. bxc3 {[%emt 0:59:51]} Rc8 {[%emt 0:00:33]} 15. f4 {[%emt 0:00:00]} Rxc3 {[%emt 0:12:00]} 16. Bd3 {[%emt 0:00:00]} ({White should play} 16. Rde1) 16... h6 $17 {[%emt 0:08:02]} 17. Na5 {[%emt 0:00:00]} Nc6 {[%emt 0:03:07]} 18. Nxc6+ {[%emt 0:00:00]} bxc6 {[%emt 0:05:47]} (18... Rxc6 19. Rb1 $17) 19. Rb1 {[%emt 0:00:00]} Rd8 {[%emt 0:01:51]} (19... Bxa2 $19 20. Rbe1 Be6 21. fxe5 a5 22. Rxf6 a4 23. Rxh6 a3) 20. Rb7+ {[%emt 0:00:00]} (20. Rfe1 $17) 20... Rd7 $19 {[%emt 0:00:08]} 21. Rfb1 {[%emt 0:00:00]} (21. Rb8 {was necessary.}) 21... Ra3 {[%emt 0:02:14]} ({Worse is} 21... exf4 22. Rxd7+ Kxd7 23. a4) 22. f5 {[%emt 0:00:00]} Bd5 {[%emt 0:10:21]} 23. Rxd7+ {[%emt 0:00:00]} (23. R7b2 $142) 23... Kxd7 {[%emt 0:00:01] KRB-KRB. Black is winning.} 24. Rd1 {[%emt 0:00:00]} Rc3 {[%emt 0:02:11]} (24... Bxa2 25. Bc4+ Kc7 26. Ra1 Bxc4 27. Rxa3 $16) (24... Rxa2 25. c4 Rxg2+ 26. Kf1 Rxh2 27. cxd5 Rh1+ 28. Ke2 Rxd1 29. dxc6+ Kxc6 30. Kxd1 $19) 25. a4 {[%emt 0:00:00]} Kc7 {[%emt 0:02:36]} 26. Re1 {[%emt 0:00:00]} a5 {[%emt 0:02:38]} 27. Kf2 {[%emt 0:00:00]} Ra3 {[%emt 0:00:19]} 28. Re3 {[%emt 0:00:00]} Rxa4 {[%emt 0:02:03] Weighted Error Value: White=0.27 (precise) /Black=0.03 (flawless)} 0-1

[Event "1st Serbian League 2022"]
[Site "Vrnjacka Banja"]
[Date "2022.09.23"]
[Round "4.26"]
[White "Atalik, Suat"]
[Black "Ivanovic, Marko"]
[Result "1-0"]
[ECO "A57"]
[WhiteElo "2436"]
[BlackElo "2265"]
[Annotator "TA"]
[PlyCount "87"]
[EventDate "2022.09.20"]
[EventType "team-tourn"]
[EventCountry "SRB"]
[SourceTitle "playchess.com"]
[Source "ChessBase"]
[SourceQuality "1"]
[TimeControl "40/5400+30:1800+30"]

{[%evp 9,87,39,91,88,88,90,91,89,119,84,81,54,51,49,52,54,111,110,111,110,108,104,111,108,104,79,99,90,92,56,59,0,82,80,68,-191,-101,-98,-81,-117,-90,-91,-45,-65,-70,-62,0,0,0,0,59,59,59,61,54,59,60,47,47,47,47,43,353,393,397,382,385,392,440,438,446,428,416,386,29988,29989,29991,29992,29997,29998]} 1. d4 {[%emt 0:00:09]} Nf6 {[%emt 0:00:13]} 2. c4 {[%emt 0:00:17]} c5 {[%emt 0:00:23]} 3. d5 {[%emt 0:00:19]} b5 {[%emt 0:00:16]} 4. Nf3 {[%emt 0:02:44]} b4 {[%emt 0:00:35]} 5. a3 {[%emt 0:05:04]} bxa3 {[%emt 0:05:56]} ({Better is} 5... Na6 $14) 6. Rxa3 $16 {[%emt 0:00:24] A57: Benko/Volga Gambit.} g6 {[%emt 0:00:16]} 7. Nc3 {[%emt 0:12:02]} Bg7 {[%emt 0:02:33]} 8. e4 {[%emt 0:00:29] White is better.} d6 {[%emt 0:00:12]} 9. Bd3 {[%emt 0:02:13]} O-O {[%emt 0:00:09]} 10. h3 {[%emt 0:00:53]} e5 {[%emt 0:01:20] [#]} 11. Bg5 $146 {[%emt 0:02:05]} ({Predecessor:} 11. Bd2 Nh5 12. O-O Nf4 13. Bc2 h5 14. Re1 a6 15. Na4 Nd7 16. b4 cxb4 17. Bxb4 {1-0 (38) Ponkratov,P (2657)-Tadic,S (2339) Struga 2021}) 11... h6 {[%emt 0:02:42]} 12. Bd2 {[%emt 0:01:18]} a6 {[%emt 0:04:39] Inhibits Nb5.} (12... Na6 $14) 13. Qc1 {[%emt 0:01:26]} Kh7 {[%emt 0:00:19]} 14. g4 {[%emt 0:00:18]} Rh8 {[%emt 0:02:27]} 15. Ne2 {[%emt 0:04:06]} Nbd7 {[%emt 0:03:48]} 16. Ng3 {[%emt 0:00:52] White has more active pieces. The black rooks are badly placed.} Kg8 {[%emt 0:00:15]} 17. Rg1 {[%emt 0:02:40]} Rb8 {[%emt 0:01:52]} 18. Ke2 {[%emt 0:10:12]} Nf8 {[%emt 0:03:58]} 19. Ne1 {[%emt 0:05:40]} N6h7 {[%emt 0:05:50]} 20. Nf3 {[%emt 0:00:06] Against Ng5} ({White should play} 20. Rh1 $14) 20... Nf6 {[%emt 0:00:07]} (20... Ng5 $11 {remains equal.} 21. Rh1 (21. Nxg5 hxg5 22. Bxg5 Bf6 $11) 21... Nxf3 22. Kxf3 Bf6) 21. Bb1 {[%emt 0:00:30]} h5 {[%emt 0:00:30]} 22. Nf5 $2 {[%emt 0:00:30][%mdl 8192]} gxf5 {[%emt 0:00:30]} (22... hxg4 $19 23. Nxg7 gxf3+ 24. Rxf3 Kxg7 25. Rxf6 Ne6 26. Rxe6 fxe6) 23. gxf5 $17 {[%emt 0:00:30]} Ne8 {[%emt 0:14:05]} 24. Ng5 {[%emt 0:09:39]} Nh7 {[%emt 0:02:49]} 25. h4 {[%emt 0:02:25]} Kf8 {[%emt 0:04:20]} (25... Qb6 $17 26. b3 Qd8) 26. Rag3 {[%emt 0:04:20]} Rb7 {[%emt 0:11:40]} 27. Bc2 {[%emt 0:01:42]} Nxg5 {[%emt 0:08:43]} (27... Nhf6 $15) 28. hxg5 $11 {[%emt 0:00:21]} f6 {[%emt 0:00:05]} 29. g6 {[%emt 0:01:00]} Kg8 {[%emt 0:07:12]} (29... Bd7 $11) 30. Rh1 {[%emt 0:03:35][%mdl 1024] White has compensation.} Bf8 {[%emt 0:00:44]} 31. Rhh3 {[%emt 0:05:27]} Qc7 {[%emt 0:04:33]} 32. Ra3 {[%emt 0:01:32]} Rb4 {[%emt 0:03:16]} 33. Ba4 {[%emt 0:01:23]} Ng7 {[%emt 0:00:45]} 34. Bxb4 {[%emt 0:00:33]} cxb4 {[%emt 0:00:03]} 35. Raf3 {[%emt 0:00:34]} Bd7 $2 {[%emt 0:00:50][%mdl 8192]} (35... Be7 $14) 36. Bxd7 $18 {[%emt 0:00:56]} Qxd7 {[%emt 0:00:06]} 37. Qa1 {[%emt 0:00:45]} Qc8 {[%emt 0:00:10]} 38. b3 {[%emt 0:00:17]} h4 {[%emt 0:01:54]} 39. Qh1 {[%emt 0:02:08]} Ne8 {[%emt 0:00:44] [#]} 40. Rfg3 $3 {[%emt 0:02:28][%mdl 512]} Qc5 {[%emt 0:01:03]} (40... Qb7 41. Rg4) 41. Rg4 {[%emt 0:30:21]} ({Less strong is} 41. Rxh4 Rxh4 42. Qxh4 Bg7 $18) 41... Qd4 $2 {[%emt 0:30:59]} (41... Bg7 $18 42. Qa1 Qb6 43. Rhxh4 Kf8) 42. Rgxh4 {[%emt 0:00:34] White mates.} Rxh4 {[%emt 0:00:06]} 43. Rxh4 {[%emt 0:00:11]} Bg7 {[%emt 0:00:05] [#]} 44. Rh8+ $3 {[%emt 0:17:32][%mdl 512] Weighted Error Value: White=0.19 (very precise) /Black=0.40} 1-0

[Event "1st Serbian League 2022"]
[Site "Vrnjacka Banja"]
[Date "2022.09.23"]
[Round "4.27"]
[White "Sarenac, Ivan"]
[Black "Vucinic, Gojko"]
[Result "1-0"]
[ECO "A16"]
[WhiteElo "2402"]
[BlackElo "2380"]
[Annotator "TA"]
[PlyCount "43"]
[EventDate "2022.09.20"]
[EventType "team-tourn"]
[EventCountry "SRB"]
[SourceTitle "playchess.com"]
[Source "ChessBase"]
[SourceQuality "1"]
[TimeControl "40/5400+30:1800+30"]

{[%evp 9,43,18,38,8,5,6,52,53,41,50,50,39,49,51,52,0,0,0,0,0,0,-19,20,8,31,66,170,147,130,83,98,73,891,868,29997,-797]} 1. Nf3 {[%emt 0:00:04]} Nf6 {[%emt 0:11:43][%cal Bg8f6,Bf6d5,Bd5b4][%mdl 32]} 2. c4 {[%emt 0:00:07]} g6 {[%emt 0:00:09]} 3. Nc3 {[%emt 0:00:07]} d5 {[%emt 0:00:32]} 4. cxd5 {[%emt 0:00:18]} Nxd5 {[%emt 0:00:10]} 5. h4 {[%emt 0:00:06]} Nc6 {[%emt 0:00:12]} 6. e4 {[%emt 0:02:59] A16: English Opening: 1...Nf6 with ...d5.} (6. d4 $5 {[%cal Re2e4]}) 6... Ndb4 {[%emt 0:02:37]} 7. d3 {[%emt 0:02:38]} Bg4 {[%emt 0:10:02]} (7... Bg7 $1 $11 {is superior.}) 8. a3 $14 {[%emt 0:00:58] White is slightly better.} Na6 {[%emt 0:06:41]} 9. d4 {[%emt 0:02:17] Inhibits Nc5. And now Bb5 would win.} Bxf3 {[%emt 0:12:48]} 10. gxf3 {[%emt 0:00:06] [#] Threatens to win with Bb5.} Nxd4 $146 {[%emt 0:05:47]} ({Resist} 10... Qxd4 11. Qc2 (11. Be3 Qxd1+ 12. Rxd1 Bg7 $11) 11... Qd7 12. Be3 $16) ({Predecessor:} 10... Qxd4 11. Be3 Qxd1+ 12. Rxd1 e6 13. h5 Bg7 14. hxg6 hxg6 15. Rxh8+ Bxh8 16. Rc1 Nd4 {½-½ (42) Lokander,M (2384)-Trost,E (2053) Vasteras 2018}) 11. Be3 {[%emt 0:02:25]} Bg7 {[%emt 0:00:04]} 12. h5 {[%emt 0:42:15]} (12. Qa4+ $1 $14 Kf8 13. O-O-O) 12... O-O $11 {[%emt 0:15:55]} 13. hxg6 {[%emt 0:06:45]} hxg6 {[%emt 0:04:55]} 14. f4 {[%emt 0:00:26]} e6 {[%emt 0:03:12]} 15. e5 {[%emt 0:06:13]} Nf5 {[%emt 0:02:01]} 16. Qf3 {[%emt 0:00:27]} Nxe3 {[%emt 0:04:31]} 17. fxe3 {[%emt 0:05:40]} Rb8 {[%emt 0:03:10]} (17... Nc5 $14) 18. Qh3 $40 {[%emt 0:08:13][%csl Gh1][%cal Rh3h7][%mdl 1152] White has strong compensation. White has strong attack.} Re8 {[%emt 0:00:07]} 19. Rd1 {[%emt 0:01:22]} ({White should play} 19. Ne4) 19... Qe7 $16 {[%emt 0:00:11]} 20. Rd2 {[%emt 0:00:17] Hoping for Rdh2. White has more active pieces. The black rooks are badly placed.} Red8 $2 {[%emt 0:03:28][%mdl 8192] [#]} (20... Kf8 $16) 21. Rdh2 $1 $18 {[%emt 0:01:10][%cal Oh3h8] Intending Qh8+! and mate.} Qc5 {[%emt 0:00:30] [#]} 22. Qh8+ $3 {[%emt 0:00:10][%mdl 33280] Weighted Error Value: White=0.16 (very precise) /Black=0.41. Loss on time!?} 1-0

[Event "1st Serbian League 2022"]
[Site "Vrnjacka Banja"]
[Date "2022.09.23"]
[Round "4.28"]
[White "Milosevic, Milos"]
[Black "Arsovic, Zoran"]
[Result "1-0"]
[ECO "B41"]
[WhiteElo "2379"]
[BlackElo "2362"]
[Annotator "TA"]
[PlyCount "87"]
[EventDate "2022.09.20"]
[EventType "team-tourn"]
[EventCountry "SRB"]
[SourceTitle "playchess.com"]
[Source "ChessBase"]
[SourceQuality "1"]
[TimeControl "40/5400+30:1800+30"]

{[%evp 14,87,60,40,61,62,96,66,74,55,55,56,56,50,39,29,52,53,114,102,123,101,109,102,142,99,116,116,137,128,128,114,112,115,127,69,321,317,317,313,326,306,312,314,731,344,439,408,417,414,518,504,519,538,448,452,547,547,504,466,29967,29972,29972,29973,29972,29973,29975,29975,29974,29970,29980,29980,29977,29977,29976,29977]} 1. e4 {[%emt 0:00:11] Gutman,L} c5 {[%emt 0:00:14]} 2. Nf3 {[%emt 0:00:37]} e6 {[%emt 0:00:42]} 3. d4 {[%emt 0:00:04]} cxd4 {[%emt 0:00:10]} 4. Nxd4 {[%emt 0:00:03]} a6 {[%emt 0:00:51]} 5. c4 {[%emt 0:00:06]} Nf6 {[%emt 0:00:23]} 6. Nc3 {[%emt 0:00:02]} Qc7 {[%emt 0:01:22]} 7. Be2 {[%emt 0:01:48]} b6 {[%emt 0:01:10]} 8. Be3 {[%emt 0:07:19]} Bb7 {[%emt 0:01:18] B41: Sicilian: Kan Variation: 5 c4.} 9. f3 {[%emt 0:03:23]} d6 {[%emt 0:04:23]} 10. Qd2 {[%emt 0:01:22]} Be7 {[%emt 0:01:01] White is slightly better. was the old line (10...Nbd7).} 11. O-O-O {[%emt 0:01:01]} O-O {[%emt 0:11:13]} 12. Kb1 {[%emt 0:00:25]} Nc6 {[%emt 0:00:30]} 13. Rc1 {[%emt 0:00:55][%cal Oc3d5] Strongly threatening Nd5!} Nxd4 {[%emt 0:01:19]} 14. Bxd4 {[%emt 0:00:04]} Nd7 {[%emt 0:01:39] [#]} 15. h4 $146 {[%emt 0:00:10][%cal Bh2h4,Bh4h5,Bh5h6][%mdl 32]} ({Predecessor:} 15. g4 Rfb8 16. h4 Qd8 17. g5 Bc6 18. Rhg1 b5 19. cxb5 axb5 20. Nd1 Rc8 21. Ne3 {½-½ (38) Bischoff,K (2561)-Heinemann,T (2426) Hoeckendorf 2004 CBM 100 [Gutman,L]}) 15... Bf6 {[%emt 0:10:30]} (15... Rfc8 $14) 16. Bxf6 $16 {[%emt 0:01:52]} Nxf6 {[%emt 0:00:20]} 17. g4 {[%emt 0:00:28][%cal Bg2g4,Bg4g5][%mdl 32]} Rad8 {[%emt 0:04:56]} 18. h5 {[%emt 0:00:55]} Qe7 {[%emt 0:21:31]} 19. Qe3 {[%emt 0:04:11]} Rb8 {[%emt 0:00:18]} 20. f4 {[%emt 0:07:22]} Bc6 {[%emt 0:04:38]} 21. g5 {[%emt 0:00:43]} Nd7 {[%emt 0:00:19]} 22. h6 {[%emt 0:06:57] hxg7 is the strong threat.} g6 {[%emt 0:02:31]} 23. Rhd1 $36 {[%emt 1:02:02][%mdl 2048] Black must now prevent Qd4. White is in control.} f6 {[%emt 0:09:00] [#]} 24. Qd4 {[%emt 0:00:00] White is more active.} (24. gxf6 $1 $16 Nxf6 25. e5 dxe5 26. fxe5 (26. Qxe5 Nd7 $16)) 24... fxg5 $2 {[%emt 0:00:22][%mdl 8192] Loses the game.} (24... Nc5 $1 $14) 25. Qxd6 $18 {[%emt 0:00:00]} Qxd6 {[%emt 0:00:09]} 26. Rxd6 {[%emt 0:00:00]} Rbc8 {[%emt 0:00:27]} 27. fxg5 {[%emt 0:00:00]} Nc5 {[%emt 0:01:08]} 28. Bg4 {[%emt 0:00:00][%cal Be2g4,Bg4h3,Bh3c8][%mdl 32]} Kf7 $2 {[%emt 0:11:37] [#]} (28... Rfe8 29. e5 a5) 29. e5 {[%emt 0:00:00]} (29. b4 $142 Nxe4 30. Rf1+ Kg8 31. Bxe6+ Kh8 32. Rxf8+ Rxf8 33. Rxc6 Nxc3+ 34. Kc2) 29... Ke7 {[%emt 0:01:08]} 30. b4 {[%emt 0:00:00]} Rf4 {[%emt 0:00:34]} 31. Bh3 {[%emt 0:00:00]} ({Not} 31. bxc5 Rxg4 32. cxb6 Rxc4 $16) 31... Ne4 {[%emt 0:02:24]} 32. Rxe6+ {[%emt 0:00:00]} Kf7 {[%emt 0:00:08]} 33. Nxe4 {[%emt 0:00:00]} Bxe4+ {[%emt 0:00:06]} 34. Ka1 {[%emt 0:00:00]} Bg2 {[%emt 0:01:10]} 35. Rf6+ {[%emt 0:00:00]} ({Less strong is} 35. Bxg2 Kxe6 36. Bh3+ Rf5 $16) 35... Rxf6 {[%emt 0:00:06]} 36. Bxc8 {[%emt 0:00:00]} Rf1 {[%emt 0:00:16]} (36... Rf4 $18 37. c5 bxc5 38. Rxc5 Ke7) 37. Rxf1+ {[%emt 0:00:00] White mates.} Bxf1 {[%emt 0:00:02] KB-KB} 38. c5 {[%emt 0:00:00]} bxc5 {[%emt 0:00:17]} 39. bxc5 {[%emt 0:00:00]} Bg2 {[%emt 0:02:06]} 40. Kb2 {[%emt 0:00:00]} Bd5 {[%emt 0:00:40]} 41. a3 {[%emt 0:01:37]} a5 {[%emt 0:30:26]} 42. Kc3 {[%emt 0:00:05]} Ke7 {[%emt 0:00:29]} 43. Kd4 {[%emt 0:00:08]} Bc6 {[%emt 0:00:14]} 44. e6 {[%emt 0:00:32] Weighted Error Value: White=0.24 (precise) /Black=0.52} 1-0

[Event "1st Serbian League 2022"]
[Site "Vrnjacka Banja"]
[Date "2022.09.23"]
[Round "4.29"]
[White "Radusinovic, Lazar"]
[Black "Markovic, Miroslav"]
[Result "1/2-1/2"]
[ECO "A49"]
[WhiteElo "2308"]
[BlackElo "2275"]
[Annotator "TA"]
[PlyCount "24"]
[EventDate "2022.09.20"]
[EventType "team-tourn"]
[EventCountry "SRB"]
[SourceTitle "playchess.com"]
[Source "ChessBase"]
[SourceQuality "1"]
[TimeControl "40/5400+30:1800+30"]

{[%evp 12,24,29,19,25,6,16,6,17,20,33,33,66,30,26]} 1. d4 {[%emt 0:00:02]} Nf6 {[%emt 0:01:13]} 2. Nf3 {[%emt 0:00:09]} d6 {[%emt 0:01:25]} 3. g3 {[%emt 0:00:06]} g6 {[%emt 0:00:10]} 4. Bg2 {[%emt 0:00:04]} Bg7 {[%emt 0:00:13]} 5. O-O {[%emt 0:00:08]} O-O {[%emt 0:00:10]} 6. a4 {[%emt 0:00:04]} c6 {[%emt 0:04:07]} 7. a5 {[%emt 0:00:08]} Qc7 {[%emt 0:02:20] A49: 1 d4 Nf6 2 Nf3 g6 3 g3: Anti-King's Indian systems.} 8. c4 {[%emt 0:00:32]} e5 {[%emt 0:03:01]} 9. Nc3 {[%emt 0:00:44]} Re8 {[%emt 0:02:21] [#]} 10. e4 $146 {[%emt 0:00:34]} ({Predecessor:} 10. h3 Nbd7 11. e4 exd4 12. Nxd4 Nc5 13. Re1 Bd7 14. b4 Ne6 15. Be3 Nxd4 16. Bxd4 {1-0 (23) Gajewski,G (2396)-Bulski,K (2260) Polanica Zdroj 2005}) 10... Bg4 {[%emt 0:05:14]} 11. d5 {[%emt 0:10:22]} Qd7 {[%emt 0:03:23]} 12. Re1 {[%emt 0:10:25]} Na6 {[%emt 0:01:32] Weighted Error Value: White=0.12 (very precise) /Black=0.16 (very precise)} 1/2-1/2

[Event "1st Serbian League 2022"]
[Site "Vrnjacka Banja"]
[Date "2022.09.23"]
[Round "4.30"]
[White "Vratonjic, Slobo"]
[Black "Todorovic, Goran N"]
[Result "1/2-1/2"]
[ECO "B03"]
[WhiteElo "2253"]
[BlackElo "2305"]
[Annotator "TA"]
[PlyCount "34"]
[EventDate "2022.09.20"]
[EventType "team-tourn"]
[EventCountry "SRB"]
[SourceTitle "playchess.com"]
[Source "ChessBase"]
[SourceQuality "1"]
[TimeControl "40/5400+30:1800+30"]

{[%evp 9,21,33,20,26,25,21,71,22,12,14,18,0,0,-2]} 1. e4 {[%emt 0:01:47][%cal Be2e4,Be4e5][%mdl 32]} Nf6 {[%emt 0:00:24][%cal Bg8f6,Bf6d5,Bd5b6][%mdl 32]} 2. e5 {[%emt 0:00:11]} Nd5 {[%emt 0:00:10]} 3. d4 {[%emt 0:00:11]} d6 {[%emt 0:00:08]} 4. c4 {[%emt 0:00:31]} Nb6 {[%emt 0:00:08]} 5. f4 {[%emt 0:01:20]} g6 {[%emt 0:02:11]} 6. Nf3 {[%emt 0:01:00] B03: Alekhine's Defence: Four Pawns Attack.} dxe5 {[%emt 0:01:43]} 7. fxe5 {[%emt 0:07:17]} Bg7 {[%emt 0:04:49]} (7... c5 $11) 8. Be2 {[%emt 0:01:37]} (8. h3 $16) 8... c5 {[%emt 0:07:08] The position is equal.} 9. d5 {[%emt 0:03:07]} ({Much weaker is} 9. dxc5 Qxd1+ 10. Kxd1 N6d7 $15) 9... O-O {[%emt 0:06:26]} 10. Bf4 {[%emt 0:05:35]} e6 {[%emt 0:07:52][%cal Re6d5]} 11. Nc3 {[%emt 0:10:07] [#]  Weighted Error Value: White=0.15 (very precise) /Black=0.07 (flawless)} {Predecessor:} exd5 $146 12. cxd5 Bg4 13. O-O N8d7 14. Bg5 Qc8 15. Ne4 Bxf3 16. Bxf3 Bxe5 17. Be7 Bxb2 {0-1 (40) Kruglyakov,P (2363)-Yoshan,V (2351) Kiev 2021} 1/2-1/2